bitfinex-derivatives/quotes_SOLF0:USTF0_20251209
["timestamp","ask_amount","ask_price","bid_price","bid_amount"]
[1765310850061,62.7199374,141.9,141.85,9.57468189]
[1765310850962,2.7599374,141.88,141.84,9.57468189]
[1765310851168,2.7599374,141.88,141.86,0.05415146]
[1765310851873,0.0466866,141.89,141.86,0.05415146]
[1765310852462,0.0466866,141.89,141.86,9.38775146]
[1765310852862,62.0466866,141.89,141.87,9.57468189]
[1765310853068,62.0466866,141.89,141.87,2.99]
[1765310853670,0.0466866,141.89,141.88,9.57468189]
[1765310853876,62.7199374,141.94,141.89,2.99]
[1765310854072,62.7199374,141.94,141.9,2.99]
[1765310854575,62.7199374,141.94,141.88,6.57397589]
[1765310854776,2.8091842,141.92,141.9,0.04555563]
[1765310855278,0.0492468,141.92,141.9,0.04555563]
[1765310855483,0.0492468,141.92,141.9,3.03555563]
[1765310856787,62.0,141.91,141.9,3.03555563]
[1765310856984,62.0,141.91,141.9,0.04555563]
[1765310859590,62.0,141.91,141.9,3.03555563]
[1765310862390,0.0492468,141.92,141.9,3.03555563]
[1765310865492,62.0,141.91,141.9,3.03555563]
[1765310867498,0.0492468,141.92,141.9,3.03555563]
[1765310869396,0.0492468,141.92,141.9,9.37745563]
[1765310870494,62.0492468,141.92,141.9,9.37745563]
[1765310872403,62.0492468,141.92,141.91,2.99]
[1765310873099,0.0492468,141.92,141.91,2.99]
[1765310873704,59.96,141.94,141.93,2.99]
[1765310874003,59.96,141.94,141.92,9.331]
[1765310874202,59.96,141.94,141.93,6.3406]
[1765310874794,59.96,141.94,141.92,3.15]
[1765310876104,121.96,141.94,141.92,3.15]
[1765310876503,121.96,141.94,141.92,9.491]
[1765310878409,121.96,141.94,141.92,6.341]
[1765310881308,121.96,141.94,141.9,9.53705563]
[1765310882612,128.3002,141.94,141.9,9.53705563]
[1765310883617,6.3407,141.93,141.9,0.04555563]
[1765310884207,59.96,141.94,141.9,0.04555563]
[1765310885416,4.3103006,141.93,141.9,0.04555563]
[1765310886214,6.3415,141.91,141.9,0.04555563]
[1765310886813,62.0,141.91,141.9,0.04555563]
[1765310887317,0.05374035,141.92,141.9,0.04555563]
[1765310888509,0.05374035,141.92,141.9,3.19555563]
[1765310888717,0.05374035,141.92,141.91,3.15]
[1765310889108,0.05374035,141.92,141.91,9.72397589]
[1765310889311,4.3103006,142.02,141.94,3.16]
[1765310889511,59.92,142.02,141.95,3.16]
[1765310889914,66.2566,142.02,141.96,3.16]
[1765310890111,59.92,142.02,141.96,3.16]
[1765310890310,62.0,142.01,141.96,3.16]
[1765310890511,0.04976126,142.0,141.98,0.05173548]
[1765310891817,6.38746126,142.0,141.98,0.05173548]
[1765310893914,6.38746126,142.0,141.98,0.00173548]
[1765310894115,6.3384,141.98,141.94,6.3397]
[1765310894319,121.92,141.97,141.94,12.89597405]
[1765310894722,128.2589,141.97,141.92,12.89697405]
[1765310894917,128.2589,141.97,141.92,9.5007]
[1765310895125,0.04644425,141.96,141.93,0.04871186]
[1765310895518,0.04644425,141.96,141.93,3.20871186]
[1765310895721,0.04644425,141.96,141.94,3.16]
[1765310896324,0.04644425,141.96,141.94,6.55627405]
[1765310896522,0.04644425,141.96,141.95,3.16]
[1765310896729,0.04644425,141.96,141.94,16.05617405]
[1765310897230,0.04644425,141.96,141.95,3.16]
[1765310898231,0.04644425,141.96,141.95,6.57163354]
[1765310898426,0.04644425,141.96,141.94,12.91153354]
[1765310898832,0.04644425,141.96,141.94,6.57163354]
[1765310900432,62.0,141.95,141.94,6.57163354]
[1765310901533,0.04644425,141.96,141.94,6.57163354]
[1765310901832,0.04644425,141.96,141.94,16.07173354]
[1765310903437,0.04644425,141.96,141.94,9.73163354]
[1765310904634,62.04644425,141.96,141.94,9.73163354]
[1765310906235,62.04644425,141.96,141.94,16.07173354]
[1765310909236,62.04644425,141.96,141.94,9.73163354]
[1765310909730,62.04644425,141.96,141.94,6.57163354]
[1765310910628,68.38584425,141.96,141.93,0.04871186]
[1765310913840,62.04644425,141.96,141.93,0.04871186]
[1765310914034,62.04644425,141.96,141.93,3.11871186]
[1765310914234,62.04644425,141.96,141.93,9.69345529]
[1765310915143,62.04644425,141.96,141.93,0.04871186]
[1765310915737,62.04644425,141.96,141.93,3.11871186]
[1765310916141,62.04644425,141.96,141.93,0.04871186]
[1765310916344,62.04644425,141.96,141.93,6.38921186]
[1765310916534,62.04644425,141.96,141.93,0.04871186]
[1765310918534,6.3397,141.95,141.93,0.04871186]
[1765310921644,62.0,141.94,141.93,0.04871186]
[1765310931151,62.0,141.94,141.89,6.57474343]
[1765310931152,64.75789905,141.94,141.89,6.57474343]
[1765310931444,2.75789905,141.92,141.89,6.57474343]
[1765310932345,2.80459983,141.92,141.89,9.69435848]
[1765310932654,2.80459983,141.92,141.9,6.57474343]
[1765310933651,0.04670078,141.92,141.9,9.64474343]
[1765310933855,0.04670078,141.92,141.91,9.64474343]
[1765310934056,0.04670078,141.92,141.91,3.07]
[1765310934258,0.04670078,141.92,141.91,9.4115]
[1765310934945,0.04670078,141.92,141.91,15.99155308]
[1765310935654,0.04670078,141.92,141.91,9.65005308]
[1765310935852,0.04670078,141.92,141.91,6.58005308]
[1765310937055,0.04670078,141.92,141.91,9.66005308]
[1765310937554,0.04670078,141.92,141.89,0.04961505]
[1765310937855,2.75789905,141.91,141.89,0.04961505]
[1765310938551,9.09949905,141.91,141.89,0.04961505]
[1765310940758,2.75789905,141.91,141.89,0.04961505]
[1765310941254,0.04670078,141.92,141.89,0.04961505]
[1765310942446,6.38790078,141.92,141.89,0.04961505]
[1765310942642,6.38790078,141.92,141.89,3.12961505]
[1765310944248,6.38790078,141.92,141.89,0.04961505]
[1765310944948,6.38790078,141.92,141.89,3.12961505]
[1765310945360,62.0,141.94,141.89,3.12961505]
[1765310945562,59.92,141.97,141.91,3.26]
[1765310945865,2.75789905,141.95,141.91,3.26]
[1765310946161,6.3402,141.94,141.91,3.26]
[1765310946457,6.38855627,141.94,141.91,0.04998006]
[1765310946668,66.2606,141.93,141.91,0.04998006]
[1765310948562,128.2606,141.93,141.91,0.04998006]
[1765310949663,121.92,141.93,141.91,3.30998006]
[1765310949856,59.92,141.93,141.91,3.30998006]
[1765310951164,59.92,141.93,141.92,3.26]
[1765310952260,59.92,142.0,141.95,3.26]
[1765310952462,248.87128837,142.02,141.96,3.26]
[1765310952958,62.0,142.01,141.96,3.26]
[1765310953160,0.04650358,142.0,141.97,3.30832143]
[1765310954156,0.04650358,142.0,141.97,12.07835816]
[1765310954366,0.04650358,142.0,141.98,3.26]
[1765310954881,84.56,142.1,141.99,12.03003673]
[1765310954882,2.75789905,142.1,141.99,12.03003673]
[1765310955177,59.92,142.09,142.02,3.26]
[1765310955569,6.3345,142.07,142.02,3.26]
[1765310955975,0.04831873,142.06,142.03,0.05222301]
[1765310957174,121.92,142.05,142.03,0.05222301]
[1765310957467,2.75789905,142.04,142.03,0.05222301]
[1765310959483,66.2554,142.05,142.03,0.05222301]
[1765310959672,69.01329905,142.05,142.03,0.05222301]
[1765310961671,62.0,142.04,142.03,0.05222301]
[1765310964687,121.9,142.04,142.03,0.05222301]
[1765310965482,121.9,142.04,142.03,3.05222301]
[1765310965690,59.9,142.04,142.03,3.05222301]
[1765310967301,0.04831873,142.06,142.03,3.05222301]
[1765310967480,98.4697,142.17,142.07,3.0]
[1765310967790,2.75789905,142.14,142.07,3.0]
[1765310967984,62.65789905,142.16,142.09,3.0]
[1765310968192,59.9,142.16,142.09,3.0]
[1765310968381,62.65789905,142.16,142.09,3.0]
[1765310968581,0.05262604,142.14,142.11,0.05127499]
[1765310969186,0.05262604,142.14,142.11,3.05127499]
[1765310969390,0.05262604,142.14,142.11,0.05127499]
[1765310969980,2.81052509,142.14,142.11,0.05127499]
[1765310970789,2.75789905,142.12,142.11,0.05127499]
[1765310970997,62.63789905,142.12,142.05,3.0]
[1765310971197,2.75789905,142.07,142.02,3.0]
[1765310972197,62.0447257,142.06,142.03,3.05019135]
[1765310975884,62.0447257,142.06,142.03,0.05019135]
[1765310977194,62.0447257,142.06,142.03,3.05019135]
[1765310978203,62.0447257,142.06,142.03,0.05019135]
[1765310982197,62.0447257,142.06,142.03,3.05019135]
[1765310984402,62.0447257,142.06,142.03,0.05019135]
[1765310989104,62.0447257,142.06,142.03,9.38629135]
[1765310996108,68.3795257,142.06,142.03,0.05019135]
[1765310996411,66.34766212,142.06,142.03,0.05019135]
[1765310996801,6.3352,142.05,142.03,0.05019135]
[1765310996998,59.86,142.04,142.03,0.05019135]
[1765311001603,68.3798257,142.06,142.03,3.24019135]
[1765311001805,59.88,142.05,142.03,3.24019135]
[1765311002916,59.88,142.05,142.03,9.80859838]
[1765311003210,59.88,142.05,142.03,3.24019135]
[1765311004810,57.31369598,142.05,142.04,3.19]
[1765311005009,57.31369598,142.05,142.04,9.75840703]
[1765311005607,0.0447257,142.06,142.05,3.22]
[1765311006312,0.0447257,142.06,142.05,9.78840703]
[1765311007113,0.0447257,142.06,142.05,3.22]
[1765311008205,0.0447257,142.06,142.04,16.12370703]
[1765311009009,0.0447257,142.06,142.04,9.78840703]
[1765311009902,0.0447257,142.06,142.04,6.56840703]
[1765311010104,0.0447257,142.06,142.03,0.05019135]
[1765311010811,0.0447257,142.06,142.03,6.61859838]
[1765311011312,6.3795257,142.06,142.03,6.61859838]
[1765311013514,6.3795257,142.06,142.03,0.05019135]
[1765311014208,6.3795257,142.06,142.03,6.61859838]
[1765311014405,59.88,142.05,142.03,6.61859838]
[1765311015115,59.88,142.05,142.03,0.05019135]
[1765311016614,6.3357,142.04,142.03,0.05019135]
[1765311018326,6.3357,142.04,141.97,13.03373497]
[1765311018327,6.337,142.01,142.0,6.56840703]
[1765311018510,59.88,142.01,142.0,9.78840703]
[1765311019209,98.5382,142.07,142.0,9.78840703]
[1765311019519,0.05228914,142.05,142.02,0.04700193]
[1765311020619,6.3361,142.04,142.02,0.04700193]
[1765311023024,6.3361,142.04,142.02,3.26700193]
[1765311023221,0.05228914,142.05,142.03,9.78840703]
[1765311023422,59.93228914,142.05,142.03,9.78840703]
[1765311023623,59.93228914,142.05,142.04,9.78840703]
[1765311023822,59.93228914,142.05,142.04,3.22]
[1765311025220,0.05228914,142.05,142.04,3.22]
[1765311025626,0.05228914,142.05,142.04,9.5557]
[1765311035632,0.05228914,142.05,142.03,6.57305087]
[1765311035837,0.05228914,142.05,142.03,9.74305087]
[1765311037943,0.05228914,142.05,142.04,3.17]
[1765311038236,0.05228914,142.05,142.04,9.74305087]
[1765311039140,0.05228914,142.05,142.04,3.17]
[1765311039536,0.05228914,142.05,142.03,16.07895087]
[1765311040542,0.05228914,142.05,142.04,3.17]
[1765311043640,0.05228914,142.05,142.04,6.57382841]
[1765311043847,0.05228914,142.05,142.04,9.74382841]
[1765311047543,0.05228914,142.05,142.04,3.17]
[1765311048450,0.05228914,142.05,142.04,9.74540011]
[1765311051657,0.05228914,142.05,142.04,3.17]
[1765311051960,0.05228914,142.05,142.04,9.74540011]
[1765311052552,62.0,142.08,142.06,3.17]
[1765311052761,62.0,142.08,142.07,3.17]
[1765311053256,62.0,142.08,142.07,9.74474969]
[1765311057356,6.329,142.19,142.14,6.331]
[1765311057661,62.61322327,142.21,142.16,3.07]
[1765311057962,62.61322327,142.21,142.17,3.07]
[1765311058362,0.05153547,142.2,142.18,0.04644395]
[1765311058864,2.75322327,142.19,142.18,0.04644395]
[1765311059668,2.80475874,142.2,142.18,0.04644395]
[1765311060463,98.4598,142.18,142.11,6.57474969]
[1765311060765,2.75322327,142.16,142.12,3.07]
[1765311061159,6.3304,142.16,142.12,3.07]
[1765311061357,0.05285415,142.15,142.13,3.11903759]
[1765311061857,0.05285415,142.15,142.13,0.04903759]
[1765311062555,6.38375415,142.15,142.13,0.04903759]
[1765311062754,2.75322327,142.14,142.13,0.04903759]
[1765311063962,66.15322327,142.14,142.13,0.04903759]
[1765311064163,66.15322327,142.14,142.1,18.12]
[1765311064361,2.75322327,142.11,142.1,18.12]
[1765311064861,2.75322327,142.11,142.07,3.07]
[1765311065069,0.04447139,142.1,142.08,3.11754922]
[1765311067655,0.04447139,142.1,142.08,0.04754922]
[1765311068070,62.0,142.09,142.08,0.04754922]
[1765311069362,124.59322327,142.09,142.08,0.04754922]
[1765311077376,121.84,142.09,142.08,3.12754922]
[1765311078170,124.59322327,142.09,142.08,0.04754922]
[1765311081177,121.84,142.09,142.08,3.12754922]
[1765311082882,0.04447139,142.1,142.08,3.12754922]
[1765311083189,2.75322327,142.18,142.1,3.08]
[1765311083387,59.86,142.17,142.11,3.08]
[1765311083586,59.86,142.17,142.14,3.08]
[1765311083973,62.0,142.16,142.14,3.12766194]
[1765311084382,59.9133091,142.17,142.15,3.08]
[1765311084784,360.7935926,142.28,142.16,3.03]
[1765311084785,6.328,142.22,142.16,3.03]
[1765311085083,59.86,142.21,142.17,3.03]
[1765311085478,59.86,142.21,142.18,9.3594]
[1765311085986,59.90668052,142.21,142.18,3.07754727]
[1765311086184,59.90668052,142.21,142.18,0.04754727]
[1765311086374,59.90668052,142.21,142.18,3.07754727]
[1765311087488,62.0,142.2,142.18,3.07754727]
[1765311088593,0.04668052,142.21,142.18,3.07754727]
[1765311088594,0.04668052,142.21,142.19,3.03]
[1765311088890,6.326,142.26,142.19,3.03]
[1765311088891,59.84,142.26,142.2,3.03]
[1765311089276,59.84,142.26,142.22,3.03]
[1765311089784,59.84,142.26,142.21,6.3279]
[1765311089785,0.05247476,142.25,142.23,3.08292263]
[1765311091484,0.05247476,142.25,142.23,9.40992263]
[1765311091684,62.0,142.24,142.23,9.40992263]
[1765311092185,62.0,142.24,142.23,0.05292263]
[1765311092691,62.0,142.24,142.23,3.08292263]
[1765311097487,0.05247476,142.25,142.24,6.3268]
[1765311097679,0.05247476,142.25,142.24,9.3568]
[1765311102095,59.8,142.3,142.27,3.03]
[1765311103199,59.8,142.3,142.27,0.05033121]
[1765311103385,62.55322327,142.3,142.27,0.05033121]
[1765311104404,2.75322327,142.28,142.27,0.05033121]
[1765311104700,2.75322327,142.28,142.24,22.36]
[1765311105087,62.0,142.27,142.24,22.36]
[1765311105495,62.04910956,142.27,142.24,22.41095224]
[1765311108302,62.04910956,142.27,142.24,25.44095224]
[1765311108494,62.04910956,142.27,142.24,22.41095224]
[1765311109606,68.37460956,142.27,142.24,22.41095224]
[1765311110201,121.82910956,142.27,142.24,25.44095224]
[1765311110397,121.82910956,142.27,142.25,3.03]
[1765311112794,121.82910956,142.27,142.25,9.3563]
[1765311113808,121.82910956,142.27,142.24,22.41095224]
[1765311114001,121.82910956,142.27,142.24,25.44095224]
[1765311117106,121.82910956,142.27,142.24,25.38095224]
[1765311119414,128.15460956,142.27,142.24,25.38095224]
[1765311119619,121.82910956,142.27,142.24,22.41095224]
[1765311120315,6.3263,142.25,142.24,22.41095224]
[1765311120514,126.1189665,142.27,142.24,22.41095224]
[1765311120914,121.82910956,142.27,142.25,2.97]
[1765311121405,59.82910956,142.27,142.25,2.97]
[1765311121811,0.04910956,142.27,142.25,2.97]
[1765311122014,0.04910956,142.27,142.26,9.2959]
[1765311125618,0.04910956,142.27,142.25,3.17]
[1765311126406,0.04910956,142.27,142.25,9.72450352]
[1765311127321,0.04910956,142.27,142.26,6.55450352]
[1765311129421,62.04910956,142.27,142.26,6.55450352]
[1765311130025,62.04910956,142.27,142.25,6.55450352]
[1765311130215,62.04910956,142.27,142.24,6.60545576]
[1765311130525,62.04910956,142.27,142.25,6.55450352]
[1765311130724,68.37470956,142.27,142.25,6.55450352]
[1765311131922,62.04910956,142.27,142.26,3.17]
[1765311132126,62.04910956,142.27,142.26,9.72450352]
[1765311132324,62.04910956,142.27,142.26,3.17]
[1765311134029,62.04910956,142.27,142.24,8.82098897]
[1765311134228,62.04910956,142.27,142.26,3.17]
[1765311134428,62.04910956,142.27,142.25,11.94003673]
[1765311134732,62.04910956,142.27,142.25,18.26633673]
[1765311141635,62.04910956,142.27,142.25,8.77003673]
[1765311142434,62.04910956,142.27,142.26,3.17]
[1765311143133,62.04910956,142.27,142.25,8.77003673]
[1765311143325,62.04910956,142.27,142.25,11.94003673]
[1765311143526,62.04910956,142.27,142.25,18.26633673]
[1765311151540,62.04910956,142.27,142.26,9.5959]
[1765311151838,0.04910956,142.27,142.26,18.36593673]
[1765311152635,59.78,142.29,142.28,9.595]
[1765311153832,98.3313,142.37,142.3,3.27]
[1765311154035,59.78,142.33,142.31,6.62194152]
[1765311154433,59.78,142.33,142.31,0.0462521]
[1765311154939,62.0,142.32,142.31,6.62194152]
[1765311156040,4.28985694,142.38,142.32,3.27]
[1765311156236,59.78,142.37,142.33,6.57007013]
[1765311156539,59.78,142.37,142.34,0.04718161]
[1765311156842,6.3215,142.36,142.34,0.04718161]
[1765311159136,62.0,142.35,142.34,0.04718161]
[1765311161250,66.28985694,142.35,142.31,28.09]
[1765311161851,6.3229,142.33,142.31,28.09]
[1765311162150,59.76,142.32,142.31,0.09]
[1765311162543,66.0834,142.32,142.3,0.05104776]
[1765311164142,70.37325694,142.32,142.3,0.05104776]
[1765311166849,2.74438913,142.31,142.3,0.05104776]
[1765311171958,2.74438913,142.31,142.26,25.00007013]
[1765311172261,2.74438913,142.27,142.26,25.00007013]
[1765311172757,2.74438913,142.27,142.25,6.57007013]
[1765311173063,2.79325493,142.27,142.25,6.61565007]
[1765311173358,2.79325493,142.27,142.25,9.88565007]
[1765311173554,0.0488658,142.27,142.26,3.27]
[1765311176160,0.0488658,142.27,142.25,9.78565007]
[1765311176761,0.0488658,142.27,142.25,6.61565007]
[1765311177467,0.0488658,142.27,142.25,9.78565007]
[1765311179874,0.0488658,142.27,142.25,6.61565007]
[1765311180081,9.11875493,142.27,142.25,0.04557994]
[1765311183083,45.0,142.26,142.25,0.04557994]
[1765311183385,45.0,142.26,142.25,3.21557994]
[1765311183793,0.0488658,142.27,142.25,3.21557994]
[1765311184281,0.0488658,142.27,142.26,9.74007013]
[1765311184780,0.0488658,142.27,142.26,3.17]
[1765311185382,0.0488658,142.27,142.25,9.78565007]
[1765311185579,0.0488658,142.27,142.25,6.61565007]
[1765311185783,2.79325493,142.27,142.25,0.04557994]
[1765311186383,2.79325493,142.27,142.25,3.21557994]
[1765311186584,0.0488658,142.27,142.25,3.21557994]
[1765311186779,0.0488658,142.27,142.26,3.17]
[1765311187484,0.0488658,142.27,142.25,0.04557994]
[1765311187874,9.11875493,142.27,142.25,0.04557994]
[1765311189581,0.0488658,142.27,142.25,3.21557994]
[1765311189792,45.0,142.26,142.25,3.21557994]
[1765311190381,45.0,142.26,142.25,0.04557994]
[1765311190884,45.0,142.26,142.25,3.21557994]
[1765311191788,45.0,142.26,142.25,0.04557994]
[1765311192490,0.0488658,142.27,142.26,3.17]
[1765311192779,62.52438913,142.33,142.27,3.17]
[1765311192984,62.52438913,142.33,142.28,9.71940947]
[1765311193589,6.3233,142.32,142.28,9.71940947]
[1765311193781,0.05278022,142.31,142.29,0.04553196]
[1765311194986,0.05278022,142.31,142.29,3.12553196]
[1765311195387,42.05278022,142.31,142.3,3.08]
[1765311195589,0.05278022,142.31,142.3,3.08]
[1765311198088,0.00278022,142.31,142.3,3.08]
[1765311198281,59.78,142.33,142.31,3.08]
[1765311198481,101.78,142.33,142.32,3.08]
[1765311198879,101.78,142.33,142.3,3.08]
[1765311199286,59.78,142.33,142.3,3.08]
[1765311202188,42.0,142.32,142.3,3.08]
[1765311202591,42.0,142.32,142.3,9.62625363]
[1765311202890,59.78,142.33,142.31,3.08]
[1765311205497,59.78,142.33,142.3,12.87025363]
[1765311205696,42.0,142.32,142.3,9.64625363]
[1765311205990,42.0,142.32,142.3,6.54625363]
[1765311208201,42.0,142.32,142.29,6.59178559]
[1765311208593,44.74438913,142.32,142.29,6.59178559]
[1765311208796,6.3237,142.31,142.29,0.04553196]
[1765311211499,2.74438913,142.3,142.29,0.04553196]
[1765311212005,44.74438913,142.3,142.29,0.04553196]
[1765311218106,51.06848913,142.3,142.29,0.04553196]
[1765311218295,98.3851,142.29,142.23,6.54625363]
[1765311218489,2.74438913,142.25,142.22,33.98625363]
[1765311218704,59.76,142.24,142.22,27.44]
[1765311219007,59.76,142.24,142.22,30.54]
[1765311219317,59.80580778,142.24,142.22,3.1511838]
[1765311219804,59.80580778,142.24,142.22,9.69743743]
[1765311220000,59.80580778,142.24,142.23,3.1]
[1765311221100,59.80580778,142.24,142.23,9.64625363]
[1765311221303,0.04580778,142.24,142.23,9.64625363]
[1765311221694,0.04580778,142.24,142.23,3.1]
[1765311221896,59.78,142.28,142.25,3.1]
[1765311222902,59.78,142.28,142.25,3.14806435]
[1765311223498,59.78,142.28,142.26,3.1]
[1765311224404,59.78,142.28,142.25,9.47436435]
[1765311224703,59.78,142.28,142.26,3.1]
[1765311226603,66.105,142.28,142.25,3.14806435]
[1765311226904,66.105,142.28,142.25,0.04806435]
[1765311228305,9.06988913,142.27,142.25,0.04806435]
[1765311228702,6.3255,142.27,142.25,0.04806435]
[1765311233215,6.3259,142.26,142.25,0.04806435]
[1765311233507,4.29052592,142.26,142.21,6.54805643]
[1765311233697,4.29052592,142.26,142.2,6.54805643]
[1765311234311,6.37918271,142.24,142.22,0.04502915]
[1765311234608,66.15918271,142.24,142.22,0.04502915]
[1765311234812,59.83228271,142.24,142.22,23.83502915]
[1765311236104,6.3272,142.23,142.22,23.83502915]
[1765311236302,6.3272,142.23,142.22,21.40007246]
[1765311236606,4.29052592,142.23,142.17,3.2]
[1765311236807,6.3286,142.2,142.16,12.87805643]
[1765311237110,59.78,142.2,142.16,3.2]
[1765311237506,0.05277393,142.19,142.17,3.24732925]
[1765311239310,42.05277393,142.19,142.17,3.24732925]
[1765311239514,48.38187393,142.19,142.17,0.04732925]
[1765311239810,48.38187393,142.19,142.17,3.24732925]
[1765311240407,48.38187393,142.19,142.17,0.04732925]
[1765311259040,42.05277393,142.19,142.17,3.15732925]
[1765311261929,42.05277393,142.19,142.17,0.04732925]
[1765311263924,42.05277393,142.19,142.17,3.15732925]
[1765311266034,42.05277393,142.19,142.17,0.04732925]
[1765311266237,140.50697393,142.19,142.13,26.22]
[1765311266438,98.4676,142.17,142.13,26.22]
[1765311266641,59.82,142.16,142.13,26.22]
[1765311266933,6.3308,142.15,142.13,26.22]
[1765311267143,6.37802589,142.15,142.13,26.26636345]
[1765311267343,0.04722589,142.15,142.14,3.19]
[1765311267640,59.86722589,142.15,142.14,3.19]
[1765311268538,59.86722589,142.15,142.13,35.78786345]
[1765311268741,59.86722589,142.15,142.13,29.45636345]
[1765311269439,66.19802589,142.15,142.13,29.45636345]
[1765311269637,42.0,142.14,142.13,29.45636345]
[1765311275437,42.0,142.14,142.13,26.26636345]
[1765311277043,66.19802589,142.15,142.13,26.26636345]
[1765311280042,42.0,142.14,142.13,26.26636345]
[1765311280241,42.0,142.14,142.13,0.04636345]
[1765311285648,48.3312,142.14,142.13,0.04636345]
[1765311288051,42.0,142.14,142.13,9.56806345]
[1765311288256,98.4277,142.23,142.14,3.19]
[1765311288551,59.84,142.22,142.16,6.57052146]
[1765311288749,6.3287,142.2,142.17,3.19]
[1765311288949,59.84,142.22,142.17,3.19]
[1765311289147,40.0,142.21,142.17,3.19]
[1765311289345,0.04899944,142.2,142.18,0.04487472]
[1765311289541,6.37779944,142.2,142.18,0.04487472]
[1765311292658,40.0,142.19,142.18,0.04487472]
[1765311294161,99.82,142.19,142.18,0.04487472]
[1765311297860,99.82,142.19,142.18,9.63539618]
[1765311300158,40.0,142.19,142.18,3.06487472]
[1765311300362,0.04899944,142.2,142.18,9.39387472]
[1765311300750,0.04899944,142.2,142.19,3.02]
[1765311300963,0.04899944,142.2,142.19,11.78915541]
[1765311301858,9.07314763,142.28,142.21,3.02]
[1765311302053,59.82,142.27,142.24,6.55933018]
[1765311302357,66.1455,142.27,142.23,9.57933018]
[1765311302759,0.04960328,142.26,142.24,0.04822252]
[1765311303459,40.0,142.25,142.24,3.06822252]
[1765311303658,0.04960328,142.26,142.24,3.06822252]
[1765311304566,0.04960328,142.26,142.24,0.04822252]
[1765311305266,2.79745091,142.26,142.24,0.04822252]
[1765311305466,0.04960328,142.26,142.24,3.06822252]
[1765311306460,0.04960328,142.26,142.24,0.04822252]
[1765311306660,40.0,142.25,142.24,0.04822252]
[1765311308170,40.0,142.25,142.24,3.06822252]
[1765311309962,40.0,142.25,142.24,0.04822252]
[1765311323183,6.3268,142.24,142.23,17.22]
[1765311323383,9.07464763,142.24,142.23,17.22]
[1765311324182,9.07464763,142.24,142.23,14.66466003]
[1765311324386,6.3275,142.23,142.18,3.02]
[1765311324684,62.52784763,142.22,142.18,3.02]
[1765311325486,0.05013013,142.21,142.19,0.04554014]
[1765311326485,40.05013013,142.21,142.19,0.04554014]
[1765311327584,40.05013013,142.21,142.19,3.09554014]
[1765311327890,0.05013013,142.21,142.2,3.05]
[1765311328381,59.8,142.24,142.21,3.05]
[1765311329189,59.8469721,142.24,142.21,3.05]
[1765311330391,59.8469721,142.24,142.22,3.05]
[1765311330782,40.0,142.26,142.24,3.05]
[1765311330978,59.8,142.29,142.24,3.05]
[1765311331182,59.8,142.29,142.25,3.05]
[1765311331993,0.0523945,142.28,142.26,3.098139]
[1765311332192,0.0523945,142.28,142.26,9.65746918]
[1765311332384,0.0523945,142.28,142.27,9.60933018]
[1765311332785,241.54029592,142.33,142.28,3.05]
[1765311333085,2.74784763,142.34,142.26,0.048139]
[1765311333086,59.8,142.34,142.29,9.60933018]
[1765311333388,59.8,142.34,142.3,3.05]
[1765311333687,66.1226,142.34,142.29,6.3244]
[1765311333895,66.1226,142.34,142.3,0.05284725]
[1765311334098,40.0,142.33,142.3,0.05284725]
[1765311334400,40.0,142.33,142.3,3.10284725]
[1765311334687,40.0,142.33,142.3,0.05284725]
[1765311334891,2.74784763,142.31,142.3,0.05284725]
[1765311338188,42.74784763,142.31,142.3,0.05284725]
[1765311344194,40.0,142.31,142.3,0.05284725]
[1765311344396,99.78,142.31,142.3,3.10284725]
[1765311348202,99.78,142.31,142.3,0.05284725]
[1765311355410,106.1037,142.31,142.3,0.05284725]
[1765311355802,99.78,142.31,142.27,19.26]
[1765311356001,59.78,142.31,142.27,19.26]
[1765311356811,0.04756164,142.3,142.28,0.04610343]
[1765311357903,6.37166164,142.3,142.28,0.04610343]
[1765311359013,40.0,142.29,142.28,0.04610343]
[1765311362126,44.28727495,142.29,142.27,13.11627784]
[1765311362429,59.76,142.28,142.23,6.55130439]
[1765311362933,59.76,142.28,142.23,9.84130439]
[1765311363125,0.05023201,142.27,142.24,0.05421615]
[1765311363627,6.326,142.26,142.24,0.05421615]